[Event "Titled Tuesday Blitz March 28 Late 2023"]
[White "Caruana, Fabiano"]
[Black "Xiong, Jeffery"]
[WhiteFideId "2020009"]
[BlackFideId "2047640"]
[WhiteElo "2818"]
[BlackElo "2726"]
[Result "0-1"]
[Round "06"]
[TimeControl "180+2"]
[Date "2023.03.28"]
[WhiteClock "0:00:05"]
[BlackClock "0:01:30"]

1. d4 {[%clk 0:03:00]}  d5 {[%clk 0:03:00]} 2. c4 {[%clk 0:03:00]}  dxc4 {[%clk 0:03:01]} 3. e3 {[%clk 0:03:00]}  Nf6 {[%clk 0:03:01]} 4. Bxc4 {[%clk 0:03:00]}  e6 {[%clk 0:03:02]} 5. Nf3 {[%clk 0:03:00]}  c5 {[%clk 0:03:02]} 6. Nc3 {[%clk 0:02:59]}  Nc6 {[%clk 0:03:02]} 7. O-O {[%clk 0:02:52]}  a6 {[%clk 0:03:02]} 8. Bb3 {[%clk 0:02:52]}  Be7 {[%clk 0:03:01]} 9. Qe2 {[%clk 0:02:43]}  O-O {[%clk 0:03:01]} 10. Rd1 {[%clk 0:02:43]}  Qc7 {[%clk 0:03:01]} 11. h3 {[%clk 0:02:36]}  b5 {[%clk 0:03:00]} 12. dxc5 {[%clk 0:02:37]}  Bxc5 {[%clk 0:03:01]} 13. e4 {[%clk 0:02:37]}  Nd7 {[%clk 0:02:58]} 14. Be3 {[%clk 0:02:35]}  Bxe3 {[%clk 0:02:46]} 15. Qxe3 {[%clk 0:02:36]}  Bb7 {[%clk 0:02:47]} 16. Rac1 {[%clk 0:02:35]}  Rac8 {[%clk 0:02:26]} 17. Nd5 {[%clk 0:02:32]}  Qd8 {[%clk 0:02:24]} 18. Nf4 {[%clk 0:02:26]}  Qe7 {[%clk 0:02:23]} 19. e5 {[%clk 0:02:16]}  Na5 {[%clk 0:02:23]} 20. Rxc8 {[%clk 0:02:14]}  Rxc8 {[%clk 0:02:24]} 21. Nd4 {[%clk 0:02:10]}  Nc5 {[%clk 0:02:14]} 22. Bc2 {[%clk 0:01:46]}  Nc4 {[%clk 0:02:13]} 23. Qg3 {[%clk 0:01:44]}  Nxe5 {[%clk 0:02:08]} 24. Nfxe6 {[%clk 0:01:32]}  Nxe6 {[%clk 0:02:09]} 25. Qxe5 {[%clk 0:01:32]}  Qc5 {[%clk 0:02:09]} 26. Qxc5 {[%clk 0:01:26]}  Nxc5 {[%clk 0:02:10]} 27. Nf5 {[%clk 0:01:18]}  Kf8 {[%clk 0:02:10]} 28. Nd6 {[%clk 0:01:18]}  Rd8 {[%clk 0:02:10]} 29. Nxb7 {[%clk 0:01:17]}  Rxd1+ {[%clk 0:02:08]} 30. Bxd1 {[%clk 0:01:18]}  Nxb7 {[%clk 0:02:09]} 31. f4 {[%clk 0:01:17]}  Ke7 {[%clk 0:02:09]} 32. Kf2 {[%clk 0:01:17]}  Kd6 {[%clk 0:02:09]} 33. Ke3 {[%clk 0:01:18]}  Kc5 {[%clk 0:02:08]} 34. a3 {[%clk 0:01:13]}  a5 {[%clk 0:02:09]} 35. Bc2 {[%clk 0:01:04]}  Nd6 {[%clk 0:02:09]} 36. b3 {[%clk 0:01:03]}  b4 {[%clk 0:02:09]} 37. a4 {[%clk 0:01:00]}  h6 {[%clk 0:02:08]} 38. g4 {[%clk 0:01:00]}  g5 {[%clk 0:02:08]} 39. fxg5 {[%clk 0:00:44]}  hxg5 {[%clk 0:02:09]} 40. Bd1 {[%clk 0:00:44]}  Kd5 {[%clk 0:02:08]} 41. Bf3+ {[%clk 0:00:42]}  Ke5 {[%clk 0:02:08]} 42. Bc6 {[%clk 0:00:43]}  f5 {[%clk 0:02:04]} 43. Kd3 {[%clk 0:00:37]}  fxg4 {[%clk 0:01:35]} 44. hxg4 {[%clk 0:00:38]}  Nf7 {[%clk 0:01:35]} 45. Kc4 {[%clk 0:00:34]}  Kd6 {[%clk 0:01:36]} 46. Kb5 {[%clk 0:00:31]}  Ne5 {[%clk 0:01:37]} 47. Ba8 {[%clk 0:00:24]}  Nxg4 {[%clk 0:01:37]} 48. Kxa5 {[%clk 0:00:25]}  Kc5 {[%clk 0:01:38]} 49. Ka6 {[%clk 0:00:25]}  Ne5 {[%clk 0:01:38]} 50. Bh1 {[%clk 0:00:22]}  g4 {[%clk 0:01:34]} 51. Kb7 {[%clk 0:00:22]}  Nc4 {[%clk 0:01:31]} 52. Be4 {[%clk 0:00:07]}  g3 {[%clk 0:01:31]} 53. Kc7 {[%clk 0:00:05]}  Na5 {[%clk 0:01:30]} 0-1


[Site "https://www.chess.com"]

[Event "Titled Tuesday Blitz March 28 Late 2023"]
[White "Rasulov, Vugar"]
[Black "Vachier-Lagrave, Maxime"]
[WhiteFideId "13402390"]
[BlackFideId "623539"]
[WhiteElo "2509"]
[BlackElo "2740"]
[Result "1-0"]
[Round "06"]
[TimeControl "180+2"]
[Date "2023.03.28"]
[WhiteClock "0:00:06"]
[BlackClock "0:00:09"]

1. e4 {[%clk 0:03:00]}  e5 {[%clk 0:02:58]} 2. Nf3 {[%clk 0:03:00]}  Nc6 {[%clk 0:02:59]} 3. Nc3 {[%clk 0:03:01]}  Bb4 {[%clk 0:02:54]} 4. Nd5 {[%clk 0:02:57]}  Ba5 {[%clk 0:02:53]} 5. c3 {[%clk 0:02:54]}  Nf6 {[%clk 0:02:52]} 6. b4 {[%clk 0:02:45]}  Bb6 {[%clk 0:02:51]} 7. Nxf6+ {[%clk 0:02:42]}  Qxf6 {[%clk 0:02:51]} 8. Bc4 {[%clk 0:02:42]}  d6 {[%clk 0:02:49]} 9. O-O {[%clk 0:02:35]}  Bg4 {[%clk 0:02:49]} 10. h3 {[%clk 0:02:36]}  h5 {[%clk 0:02:50]} 11. a4 {[%clk 0:02:32]}  a5 {[%clk 0:02:49]} 12. b5 {[%clk 0:02:32]}  Ne7 {[%clk 0:02:50]} 13. d4 {[%clk 0:02:30]}  Bxf3 {[%clk 0:02:38]} 14. Qxf3 {[%clk 0:02:28]}  Qxf3 {[%clk 0:02:38]} 15. gxf3 {[%clk 0:02:29]}  exd4 {[%clk 0:02:37]} 16. cxd4 {[%clk 0:02:27]}  Bxd4 {[%clk 0:02:37]} 17. Ra2 {[%clk 0:02:27]}  Bc5 {[%clk 0:01:59]} 18. Rc2 {[%clk 0:02:26]}  f6 {[%clk 0:01:58]} 19. f4 {[%clk 0:02:19]}  O-O-O {[%clk 0:01:43]} 20. Kg2 {[%clk 0:02:13]}  b6 {[%clk 0:01:34]} 21. Be6+ {[%clk 0:01:56]}  Kb8 {[%clk 0:01:33]} 22. Rd1 {[%clk 0:01:45]}  g6 {[%clk 0:01:26]} 23. Bb2 {[%clk 0:01:41]}  Rhf8 {[%clk 0:01:26]} 24. Kf3 {[%clk 0:01:39]}  f5 {[%clk 0:01:26]} 25. e5 {[%clk 0:01:26]}  dxe5 {[%clk 0:01:26]} 26. Rxd8+ {[%clk 0:01:26]}  Rxd8 {[%clk 0:01:26]} 27. Bxe5 {[%clk 0:01:22]}  Kb7 {[%clk 0:01:15]} 28. Kg2 {[%clk 0:01:18]}  Rd3 {[%clk 0:01:04]} 29. Bc4 {[%clk 0:01:13]}  Rd1 {[%clk 0:01:00]} 30. Bf7 {[%clk 0:01:11]}  h4 {[%clk 0:00:55]} 31. Bf6 {[%clk 0:01:04]}  Nd5 {[%clk 0:00:55]} 32. Bg5 {[%clk 0:01:04]}  Rd4 {[%clk 0:00:52]} 33. Re2 {[%clk 0:00:50]}  Nc3 {[%clk 0:00:32]} 34. Re8 {[%clk 0:00:42]}  Nxa4 {[%clk 0:00:17]} 35. Bxg6 {[%clk 0:00:42]}  Nc3 {[%clk 0:00:17]} 36. Bxf5 {[%clk 0:00:42]}  Nxb5 {[%clk 0:00:17]} 37. Be4+ {[%clk 0:00:35]}  c6 {[%clk 0:00:18]} 38. Bf6 {[%clk 0:00:34]}  Rd2 {[%clk 0:00:16]} 39. Bxh4 {[%clk 0:00:28]}  a4 {[%clk 0:00:16]} 40. Re6 {[%clk 0:00:24]}  Nd4 {[%clk 0:00:17]} 41. Rg6 {[%clk 0:00:15]}  a3 {[%clk 0:00:16]} 42. Rg7+ {[%clk 0:00:15]}  Ka6 {[%clk 0:00:16]} 43. Rg8 {[%clk 0:00:15]}  a2 {[%clk 0:00:14]} 44. Bf6 {[%clk 0:00:16]}  Kb5 {[%clk 0:00:10]} 45. Ra8 {[%clk 0:00:16]}  Ne6 {[%clk 0:00:09]} 46. f5 {[%clk 0:00:13]}  Nc7 {[%clk 0:00:09]} 47. Ra7 {[%clk 0:00:10]}  Nd5 {[%clk 0:00:06]} 48. Be5 {[%clk 0:00:01]}  Rxf2+ {[%clk 0:00:06]} 49. Kg3 {[%clk 0:00:02]}  Rd2 {[%clk 0:00:06]} 50. f6 {[%clk 0:00:02]}  Nxf6 {[%clk 0:00:02]} 51. Bxf6 {[%clk 0:00:03]}  Kb4 {[%clk 0:00:02]} 52. Kf4 {[%clk 0:00:03]}  Kb3 {[%clk 0:00:03]} 53. Bf5 {[%clk 0:00:02]}  Rf2+ {[%clk 0:00:03]} 54. Ke4 {[%clk 0:00:02]}  Re2+ {[%clk 0:00:03]} 55. Kf3 {[%clk 0:00:03]}  Rd2 {[%clk 0:00:02]} 56. Be6+ {[%clk 0:00:03]}  Kb4 {[%clk 0:00:03]} 57. Rxa2 {[%clk 0:00:03]}  Rd3+ {[%clk 0:00:04]} 58. Kg4 {[%clk 0:00:03]}  Bd4 {[%clk 0:00:03]} 59. Bxd4 {[%clk 0:00:03]}  Rxd4+ {[%clk 0:00:04]} 60. Kg5 {[%clk 0:00:04]}  c5 {[%clk 0:00:05]} 61. h4 {[%clk 0:00:05]}  c4 {[%clk 0:00:05]} 62. h5 {[%clk 0:00:05]}  c3 {[%clk 0:00:06]} 63. h6 {[%clk 0:00:06]}  Rd1 {[%clk 0:00:06]} 64. h7 {[%clk 0:00:05]}  Rh1 {[%clk 0:00:06]} 65. Bf5 {[%clk 0:00:06]}  Kb3 {[%clk 0:00:06]} 66. Ra8 {[%clk 0:00:06]}  b5 {[%clk 0:00:05]} 67. h8=Q {[%clk 0:00:06]}  Rxh8 {[%clk 0:00:05]} 68. Rxh8 {[%clk 0:00:07]}  b4 {[%clk 0:00:05]} 69. Kf4 {[%clk 0:00:07]}  Kb2 {[%clk 0:00:06]} 70. Rh2+ {[%clk 0:00:05]}  Ka1 {[%clk 0:00:04]} 71. Be6 {[%clk 0:00:03]}  Kb1 {[%clk 0:00:03]} 72. Bb3 {[%clk 0:00:04]}  Ka1 {[%clk 0:00:03]} 73. Ke3 {[%clk 0:00:04]}  Kb1 {[%clk 0:00:04]} 74. Kd3 {[%clk 0:00:04]}  c2 {[%clk 0:00:05]} 75. Rxc2 {[%clk 0:00:04]}  Ka1 {[%clk 0:00:05]} 76. Kc4 {[%clk 0:00:05]}  Kb1 {[%clk 0:00:06]} 77. Kxb4 {[%clk 0:00:06]}  Ka1 {[%clk 0:00:07]} 78. Kc3 {[%clk 0:00:06]}  Kb1 {[%clk 0:00:08]} 79. Bc4 {[%clk 0:00:05]}  Ka1 {[%clk 0:00:09]} 80. Rc1# {[%clk 0:00:06]} 1-0


[Site "https://www.chess.com"]

[Event "Titled Tuesday Blitz March 28 Late 2023"]
[White "Movahed, Sina"]
[Black "Erigaisi Arjun"]
[WhiteFideId "42520835"]
[BlackFideId "35009192"]
[WhiteElo "2225"]
[BlackElo "2737"]
[Result "0-1"]
[Round "06"]
[TimeControl "180+2"]
[Date "2023.03.28"]
[WhiteClock "0:00:11"]
[BlackClock "0:00:24"]

1. e4 {[%clk 0:03:00]}  d6 {[%clk 0:02:59]} 2. d4 {[%clk 0:03:00]}  g6 {[%clk 0:02:59]} 3. Nc3 {[%clk 0:02:56]}  Bg7 {[%clk 0:03:00]} 4. Be3 {[%clk 0:02:57]}  a6 {[%clk 0:03:00]} 5. h4 {[%clk 0:02:55]}  h6 {[%clk 0:02:57]} 6. Qd2 {[%clk 0:02:54]}  b5 {[%clk 0:02:57]} 7. O-O-O {[%clk 0:02:54]}  Nd7 {[%clk 0:02:56]} 8. f4 {[%clk 0:02:46]}  Nb6 {[%clk 0:02:54]} 9. e5 {[%clk 0:02:43]}  h5 {[%clk 0:02:50]} 10. Nf3 {[%clk 0:02:38]}  d5 {[%clk 0:02:48]} 11. Kb1 {[%clk 0:02:33]}  Nh6 {[%clk 0:02:46]} 12. Qe1 {[%clk 0:02:33]}  Ng4 {[%clk 0:02:38]} 13. Bc1 {[%clk 0:02:29]}  Bf5 {[%clk 0:02:35]} 14. Bd3 {[%clk 0:02:25]}  e6 {[%clk 0:02:34]} 15. Bxf5 {[%clk 0:02:23]}  gxf5 {[%clk 0:02:35]} 16. Ne2 {[%clk 0:02:19]}  a5 {[%clk 0:02:34]} 17. Qf1 {[%clk 0:02:02]}  b4 {[%clk 0:02:32]} 18. Ne1 {[%clk 0:02:01]}  Qd7 {[%clk 0:02:21]} 19. Nd3 {[%clk 0:02:01]}  Bf8 {[%clk 0:02:22]} 20. Nc5 {[%clk 0:01:56]}  Qc6 {[%clk 0:02:15]} 21. Qg1 {[%clk 0:01:51]}  a4 {[%clk 0:02:11]} 22. Bd2 {[%clk 0:01:37]}  Qb5 {[%clk 0:02:10]} 23. Nc1 {[%clk 0:01:22]}  Bxc5 {[%clk 0:01:55]} 24. dxc5 {[%clk 0:01:22]}  Nc4 {[%clk 0:01:56]} 25. Rh3 {[%clk 0:01:19]}  Kd7 {[%clk 0:01:47]} 26. b3 {[%clk 0:01:11]}  axb3 {[%clk 0:01:24]} 27. Rxb3 {[%clk 0:01:09]}  Ra4 {[%clk 0:01:21]} 28. Qd4 {[%clk 0:01:02]}  Rha8 {[%clk 0:01:17]} 29. Be1 {[%clk 0:00:40]}  Kc8 {[%clk 0:01:06]} 30. Rdd3 {[%clk 0:00:26]}  Qa5 {[%clk 0:00:58]} 31. c3 {[%clk 0:00:17]}  Rxa2 {[%clk 0:00:47]} 32. cxb4 {[%clk 0:00:17]}  Ra1+ {[%clk 0:00:47]} 33. Kc2 {[%clk 0:00:17]}  Qa2+ {[%clk 0:00:39]} 34. Kd1 {[%clk 0:00:13]}  Qxg2 {[%clk 0:00:24]} 35. b5 {[%clk 0:00:11]}  R8a2 {[%clk 0:00:24]} 0-1


[Site "https://www.chess.com"]

[Event "Titled Tuesday Blitz March 28 Late 2023"]
[White "Naroditsky, Daniel"]
[Black "Mammadov, Zaur"]
[WhiteFideId "2026961"]
[BlackFideId "13401033"]
[WhiteElo "2633"]
[BlackElo "2441"]
[Result "0-1"]
[Round "06"]
[TimeControl "180+2"]
[Date "2023.03.28"]
[WhiteClock "0:00:01"]
[BlackClock "0:00:20"]

1. d4 {[%clk 0:03:00]}  d5 {[%clk 0:02:59]} 2. Nc3 {[%clk 0:03:01]}  e6 {[%clk 0:02:59]} 3. Bf4 {[%clk 0:03:01]}  Bd6 {[%clk 0:02:59]} 4. e3 {[%clk 0:02:58]}  Bxf4 {[%clk 0:02:58]} 5. exf4 {[%clk 0:02:58]}  c5 {[%clk 0:02:59]} 6. dxc5 {[%clk 0:02:58]}  Nf6 {[%clk 0:02:58]} 7. Nf3 {[%clk 0:02:52]}  O-O {[%clk 0:02:57]} 8. Bd3 {[%clk 0:02:52]}  a5 {[%clk 0:02:54]} 9. O-O {[%clk 0:02:49]}  Nbd7 {[%clk 0:02:52]} 10. Na4 {[%clk 0:02:45]}  Qc7 {[%clk 0:02:51]} 11. Qd2 {[%clk 0:02:46]}  Nxc5 {[%clk 0:02:45]} 12. Nxc5 {[%clk 0:02:46]}  Qxc5 {[%clk 0:02:45]} 13. Nd4 {[%clk 0:02:47]}  b6 {[%clk 0:02:39]} 14. c3 {[%clk 0:02:41]}  Ba6 {[%clk 0:02:39]} 15. Bxa6 {[%clk 0:02:40]}  Rxa6 {[%clk 0:02:39]} 16. Rfe1 {[%clk 0:02:41]}  b5 {[%clk 0:02:34]} 17. f5 {[%clk 0:02:30]}  Ne4 {[%clk 0:02:27]} 18. Qe3 {[%clk 0:02:03]}  e5 {[%clk 0:01:18]} 19. Nc2 {[%clk 0:02:03]}  Qxe3 {[%clk 0:01:18]} 20. Nxe3 {[%clk 0:02:01]}  Nf6 {[%clk 0:01:15]} 21. a4 {[%clk 0:01:56]}  b4 {[%clk 0:01:13]} 22. cxb4 {[%clk 0:01:52]}  axb4 {[%clk 0:01:14]} 23. Red1 {[%clk 0:01:48]}  Rd8 {[%clk 0:01:11]} 24. f3 {[%clk 0:01:45]}  h5 {[%clk 0:01:06]} 25. b3 {[%clk 0:01:41]}  d4 {[%clk 0:01:01]} 26. Nc4 {[%clk 0:01:37]}  e4 {[%clk 0:01:00]} 27. fxe4 {[%clk 0:01:33]}  Nxe4 {[%clk 0:01:01]} 28. Rac1 {[%clk 0:01:19]}  Nc3 {[%clk 0:00:56]} 29. Rd2 {[%clk 0:01:19]}  Rf6 {[%clk 0:00:47]} 30. Rf1 {[%clk 0:01:17]}  Rd5 {[%clk 0:00:42]} 31. Rdf2 {[%clk 0:01:03]}  d3 {[%clk 0:00:41]} 32. Nd2 {[%clk 0:00:53]}  Ne2+ {[%clk 0:00:36]} 33. Kh1 {[%clk 0:00:53]}  Nd4 {[%clk 0:00:36]} 34. g3 {[%clk 0:00:44]}  Rc6 {[%clk 0:00:29]} 35. Kg2 {[%clk 0:00:40]}  Rc2 {[%clk 0:00:29]} 36. f6 {[%clk 0:00:34]}  gxf6 {[%clk 0:00:27]} 37. Re1 {[%clk 0:00:23]}  Re5 {[%clk 0:00:25]} 38. Rd1 {[%clk 0:00:22]}  Rf5 {[%clk 0:00:24]} 39. Rxf5 {[%clk 0:00:20]}  Nxf5 {[%clk 0:00:25]} 40. Kf3 {[%clk 0:00:21]}  Rc3 {[%clk 0:00:20]} 41. Ke4 {[%clk 0:00:13]}  Nd6+ {[%clk 0:00:20]} 42. Kd5 {[%clk 0:00:14]}  Nb7 {[%clk 0:00:21]} 43. Kd4 {[%clk 0:00:04]}  Na5 {[%clk 0:00:21]} 44. Rb1 {[%clk 0:00:04]}  Kg7 {[%clk 0:00:20]} 45. Ne4 {[%clk 0:00:03]}  Rxb3 {[%clk 0:00:20]} 46. Rxb3 {[%clk 0:00:04]}  Nxb3+ {[%clk 0:00:21]} 47. Kxd3 {[%clk 0:00:04]}  Na5 {[%clk 0:00:22]} 48. Nd6 {[%clk 0:00:02]}  b3 {[%clk 0:00:20]} 49. Kc3 {[%clk 0:00:03]}  Kg6 {[%clk 0:00:20]} 50. Ne4 {[%clk 0:00:02]}  Kf5 {[%clk 0:00:20]} 51. Nc5 {[%clk 0:00:02]}  Kg4 {[%clk 0:00:20]} 52. Nxb3 {[%clk 0:00:03]}  Nb7 {[%clk 0:00:19]} 53. Kb4 {[%clk 0:00:01]}  Kh3 {[%clk 0:00:20]} 54. Kb5 {[%clk 0:00:02]}  Kxh2 {[%clk 0:00:20]} 55. Nc5 {[%clk 0:00:01]}  Nd6+ {[%clk 0:00:17]} 56. Kb4 {[%clk 0:00:02]}  Kxg3 {[%clk 0:00:17]} 57. a5 {[%clk 0:00:03]}  Nc8 {[%clk 0:00:17]} 58. Ne4+ {[%clk 0:00:03]}  Kg2 {[%clk 0:00:17]} 59. Nxf6 {[%clk 0:00:02]}  h4 {[%clk 0:00:17]} 60. Kc5 {[%clk 0:00:01]}  h3 {[%clk 0:00:18]} 61. Ng4 {[%clk 0:00:02]}  Kg3 {[%clk 0:00:18]} 62. Ne3 {[%clk 0:00:03]}  Kf2 {[%clk 0:00:18]} 63. Ng4+ {[%clk 0:00:03]}  Kg3 {[%clk 0:00:19]} 64. Ne3 {[%clk 0:00:04]}  Kf3 {[%clk 0:00:19]} 65. Nf1 {[%clk 0:00:04]}  f5 {[%clk 0:00:20]} 66. Kc6 {[%clk 0:00:03]}  f4 {[%clk 0:00:20]} 67. Kc7 {[%clk 0:00:02]}  Na7 {[%clk 0:00:20]} 68. Kb6 {[%clk 0:00:02]}  Nc8+ {[%clk 0:00:20]} 69. Kc7 {[%clk 0:00:03]}  Ne7 {[%clk 0:00:21]} 70. a6 {[%clk 0:00:02]}  Nd5+ {[%clk 0:00:21]} 71. Kd6 {[%clk 0:00:02]}  Nb6 {[%clk 0:00:20]} 72. Kc6 {[%clk 0:00:02]}  Na8 {[%clk 0:00:21]} 73. Kb7 {[%clk 0:00:02]}  Kg2 {[%clk 0:00:21]} 74. Nd2 {[%clk 0:00:01]}  h2 {[%clk 0:00:21]} 75. Kxa8 {[%clk 0:00:01]}  h1=Q {[%clk 0:00:22]} 76. Kb7 {[%clk 0:00:01]}  Qh7+ {[%clk 0:00:21]} 77. Kb6 {[%clk 0:00:01]}  Qg6+ {[%clk 0:00:21]} 78. Kb5 {[%clk 0:00:01]}  Qd3+ {[%clk 0:00:21]} 79. Nc4 {[%clk 0:00:02]}  Qd5+ {[%clk 0:00:19]} 80. Kb4 {[%clk 0:00:02]}  Qc6 {[%clk 0:00:19]} 81. a7 {[%clk 0:00:01]}  Qb7+ {[%clk 0:00:19]} 82. Nb6 {[%clk 0:00:01]}  Qxa7 {[%clk 0:00:20]} 0-1


[Site "https://www.chess.com"]

[Event "Titled Tuesday Blitz March 28 Late 2023"]
[White "Moussard, Jules"]
[Black "Lazavik, Denis"]
[WhiteFideId "642908"]
[BlackFideId "13515110"]
[WhiteElo "2610"]
[BlackElo "2560"]
[Result "0-1"]
[Round "06"]
[TimeControl "180+2"]
[Date "2023.03.28"]
[WhiteClock "0:00:06"]
[BlackClock "0:00:05"]

1. e4 {[%clk 0:03:00]}  c5 {[%clk 0:03:00]} 2. Nf3 {[%clk 0:03:00]}  e6 {[%clk 0:03:00]} 3. b3 {[%clk 0:03:00]}  a6 {[%clk 0:03:00]} 4. c4 {[%clk 0:03:01]}  Nc6 {[%clk 0:02:59]} 5. Bb2 {[%clk 0:03:01]}  Nf6 {[%clk 0:02:52]} 6. e5 {[%clk 0:03:00]}  Ng4 {[%clk 0:02:52]} 7. g3 {[%clk 0:02:58]}  Qc7 {[%clk 0:02:50]} 8. Qe2 {[%clk 0:02:56]}  Be7 {[%clk 0:02:48]} 9. Bg2 {[%clk 0:02:55]}  O-O {[%clk 0:02:47]} 10. O-O {[%clk 0:02:55]}  f6 {[%clk 0:02:47]} 11. exf6 {[%clk 0:02:55]}  Bxf6 {[%clk 0:02:47]} 12. Bxf6 {[%clk 0:02:53]}  Nxf6 {[%clk 0:02:47]} 13. Nc3 {[%clk 0:02:54]}  d6 {[%clk 0:02:47]} 14. d3 {[%clk 0:02:39]}  e5 {[%clk 0:02:46]} 15. h3 {[%clk 0:02:40]}  Kh8 {[%clk 0:02:40]} 16. Kh2 {[%clk 0:02:30]}  Be6 {[%clk 0:02:40]} 17. Rae1 {[%clk 0:02:29]}  Rae8 {[%clk 0:02:39]} 18. Nd2 {[%clk 0:02:29]}  Nd4 {[%clk 0:02:38]} 19. Qd1 {[%clk 0:02:29]}  Bg8 {[%clk 0:02:30]} 20. Nde4 {[%clk 0:02:28]}  Nd7 {[%clk 0:02:26]} 21. Nd2 {[%clk 0:02:24]}  b5 {[%clk 0:02:24]} 22. Nd5 {[%clk 0:02:06]}  Qd8 {[%clk 0:02:22]} 23. Ne3 {[%clk 0:02:02]}  Nf6 {[%clk 0:02:20]} 24. Ne4 {[%clk 0:02:01]}  Nxe4 {[%clk 0:02:19]} 25. Bxe4 {[%clk 0:02:00]}  Re7 {[%clk 0:01:57]} 26. Nd5 {[%clk 0:01:49]}  Ref7 {[%clk 0:01:57]} 27. f4 {[%clk 0:01:44]}  exf4 {[%clk 0:01:56]} 28. Nxf4 {[%clk 0:01:43]}  Qg5 {[%clk 0:01:53]} 29. h4 {[%clk 0:01:41]}  Qh6 {[%clk 0:01:53]} 30. Qg4 {[%clk 0:01:10]}  Rf6 {[%clk 0:01:47]} 31. Rf2 {[%clk 0:01:05]}  b4 {[%clk 0:01:24]} 32. Ref1 {[%clk 0:01:04]}  a5 {[%clk 0:01:24]} 33. Qg5 {[%clk 0:01:03]}  Re8 {[%clk 0:01:07]} 34. Kg2 {[%clk 0:00:52]}  Re5 {[%clk 0:00:59]} 35. Qxh6 {[%clk 0:00:46]}  gxh6 {[%clk 0:00:59]} 36. Bd5 {[%clk 0:00:35]}  Nf5 {[%clk 0:00:55]} 37. Kh3 {[%clk 0:00:15]}  Ne3 {[%clk 0:00:55]} 38. Rg1 {[%clk 0:00:08]}  Bxd5 {[%clk 0:00:51]} 39. cxd5 {[%clk 0:00:08]}  Nxd5 {[%clk 0:00:52]} 40. Rgf1 {[%clk 0:00:05]}  Ref5 {[%clk 0:00:52]} 41. Rf3 {[%clk 0:00:02]}  Nxf4+ {[%clk 0:00:45]} 42. gxf4 {[%clk 0:00:02]}  Kg7 {[%clk 0:00:45]} 43. R1f2 {[%clk 0:00:03]}  Kf7 {[%clk 0:00:46]} 44. Kg3 {[%clk 0:00:03]}  Rg6+ {[%clk 0:00:46]} 45. Kh3 {[%clk 0:00:04]}  h5 {[%clk 0:00:46]} 46. Re2 {[%clk 0:00:04]}  Re6 {[%clk 0:00:44]} 47. Rg2 {[%clk 0:00:04]}  h6 {[%clk 0:00:43]} 48. Rgf2 {[%clk 0:00:03]}  Re1 {[%clk 0:00:42]} 49. Rd2 {[%clk 0:00:03]}  Rh1+ {[%clk 0:00:41]} 50. Kg3 {[%clk 0:00:03]}  Rf6 {[%clk 0:00:41]} 51. f5 {[%clk 0:00:04]}  Rg1+ {[%clk 0:00:31]} 52. Kh3 {[%clk 0:00:03]}  Ke7 {[%clk 0:00:31]} 53. d4 {[%clk 0:00:03]}  cxd4 {[%clk 0:00:20]} 54. Rxd4 {[%clk 0:00:04]}  Rf7 {[%clk 0:00:20]} 55. Re4+ {[%clk 0:00:04]}  Kd7 {[%clk 0:00:20]} 56. f6 {[%clk 0:00:05]}  Rg6 {[%clk 0:00:19]} 57. Ref4 {[%clk 0:00:05]}  Ke6 {[%clk 0:00:19]} 58. Re4+ {[%clk 0:00:05]}  Kd5 {[%clk 0:00:20]} 59. Ref4 {[%clk 0:00:06]}  Ke5 {[%clk 0:00:20]} 60. Rf5+ {[%clk 0:00:07]}  Ke6 {[%clk 0:00:17]} 61. Rxh5 {[%clk 0:00:05]}  Rgxf6 {[%clk 0:00:06]} 62. Re3+ {[%clk 0:00:06]}  Kd7 {[%clk 0:00:05]} 63. Rxa5 {[%clk 0:00:07]}  Kc6 {[%clk 0:00:04]} 64. Kg4 {[%clk 0:00:06]}  Rg7+ {[%clk 0:00:04]} 65. Kh5 {[%clk 0:00:06]}  Rg2 {[%clk 0:00:05]} 66. Re4 {[%clk 0:00:05]}  Kb6 {[%clk 0:00:04]} 67. Ra4 {[%clk 0:00:04]}  d5 {[%clk 0:00:03]} 68. Rexb4+ {[%clk 0:00:04]}  Kc5 {[%clk 0:00:04]} 69. Rb8 {[%clk 0:00:04]}  Rgf2 {[%clk 0:00:04]} 70. Rc8+ {[%clk 0:00:04]}  Kb5 {[%clk 0:00:03]} 71. Rd4 {[%clk 0:00:04]}  R2f5+ {[%clk 0:00:03]} 72. Kg4 {[%clk 0:00:04]}  h5+ {[%clk 0:00:04]} 73. Kg3 {[%clk 0:00:05]}  Rf3+ {[%clk 0:00:04]} 74. Kg2 {[%clk 0:00:05]}  Rf2+ {[%clk 0:00:05]} 75. Kg3 {[%clk 0:00:06]}  R6f3# {[%clk 0:00:05]} 0-1


[Site "https://www.chess.com"]